bitfinex-derivatives/quotes_ETHF0:USTF0_20250220
["timestamp","ask_amount","ask_price","bid_price","bid_amount"]
[1740060969975,0.7241,2761.7,2761.6,0.7241]
[1740060970178,0.5454,2762.0,2761.5,3.764]
[1740060970374,0.5454,2762.0,2761.5,0.5562]
[1740060970581,1.81013,2761.9,2761.2,3.21323193]
[1740060970777,1.81013,2761.9,2761.3,0.72418]
[1740060970778,0.72419,2761.4,2761.3,0.72418]
[1740060970978,0.72417,2761.5,2761.4,0.72417]
[1740060971378,0.00543193,2761.7,2761.2,3.21323193]
[1740060971680,0.72417,2761.5,2761.2,3.21323193]
[1740060971882,0.00543193,2761.7,2761.2,3.21323193]
[1740060972181,0.7242,2761.3,2761.2,0.00543193]
[1740060976280,0.72434,2760.8,2760.7,0.5709]
[1740060976579,0.72434,2760.8,2760.7,1.29526]
[1740060977083,5.59419,2761.4,2760.7,0.5709]
[1740060977382,0.7243,2761.0,2760.9,0.7243]
[1740060977881,0.5759,2761.4,2760.9,3.2078]
[1740060978073,1.30008,2761.4,2761.3,0.7242]
[1740060978477,0.5759,2761.4,2761.3,0.7242]
[1740060978673,0.00543193,2761.7,2761.6,0.72413]
[1740060979172,0.00543193,2761.7,2761.5,3.2078]
[1740060979379,0.72954193,2761.7,2761.6,0.72413]
[1740060979578,0.00543193,2761.7,2761.6,0.72413]
[1740060980981,0.00543193,2761.7,2761.5,3.2078]
[1740060981188,0.72954193,2761.7,2761.6,0.72413]
[1740060981380,0.00543193,2761.7,2761.4,0.5882]
[1740060981576,0.72415,2761.5,2761.2,3.2078]
[1740060981880,0.72426,2761.1,2761.0,0.5717]
[1740060982185,0.72428,2761.0,2760.9,3.93211]
[1740060982387,0.72431,2760.9,2760.7,1.26735]
[1740060982591,0.72431,2760.9,2760.7,0.543]
[1740060982884,0.72431,2761.0,2760.9,0.72431]
[1740060983085,0.72428,2761.1,2760.7,0.543]
[1740060983285,0.72428,2761.0,2760.9,0.72429]
[1740060983485,0.72428,2761.1,2761.0,0.72428]
[1740060983687,0.72429,2761.0,2760.9,0.7243]
[1740060983882,6.9064,2761.6,2760.7,0.543]
[1740060984088,0.72431,2760.9,2760.7,1.26735]
[1740060984281,6.9064,2761.6,2760.8,5.76823193]
[1740060984282,0.5732,2761.6,2760.8,5.76823193]
[1740060984582,0.72421,2761.3,2761.2,0.72422]
[1740060984791,0.5732,2761.6,2761.1,3.2078]
[1740060985085,0.72419,2761.4,2761.3,0.72419]
[1740060985480,0.72422,2761.3,2761.2,0.72422]
[1740060985687,0.5732,2761.6,2760.8,3.10803193]
[1740060985882,1.81041,2761.5,2760.9,0.72431]
[1740060986080,0.72428,2761.0,2760.9,0.72431]
[1740060986485,0.72431,2760.9,2760.8,2.56043193]
[1740060986685,0.72431,2760.9,2760.8,0.72977193]
[1740060987191,0.72431,2760.9,2760.8,0.00543193]
[1740060987589,0.72431,2760.9,2760.8,0.72977193]
[1740060987889,0.72431,2760.9,2760.8,0.00543193]
[1740060991388,0.5615,2761.0,2760.9,0.72431]
[1740060991585,1.28578,2761.0,2760.9,0.72431]
[1740060991781,0.5615,2761.0,2760.8,0.00543193]
[1740060992079,0.72431,2760.9,2760.8,0.72974193]
[1740060992286,1.28581,2761.0,2760.9,0.72431]
[1740060992688,0.5615,2761.0,2760.9,0.72431]
[1740060993203,1.28578,2761.0,2760.9,0.72431]
[1740060993394,1.28578,2761.0,2760.9,1.27451]
[1740060995199,1.28578,2761.0,2760.9,0.5502]
[1740060996189,0.72431,2760.9,2760.8,0.00543193]
[1740060996992,1.30911,2760.9,2760.8,0.00543193]
[1740060997197,3.84511,2760.9,2760.8,0.00543193]
[1740060997495,3.1208,2760.9,2760.1,3.2078]
[1740060997799,0.72449,2760.2,2760.1,3.2078]
[1740060998696,1.27176,2760.4,2760.3,0.72447]
[1740060998894,0.5473,2760.4,2760.3,0.72447]
[1740060999195,2.54,2761.2,2760.3,0.72447]
[1740061000895,0.72435,2760.8,2760.7,1.29006]
[1740061001096,0.72435,2760.8,2760.7,0.5657]
[1740061001897,0.72435,2760.8,2760.7,1.29006]
[1740061002597,0.72434,2760.9,2760.8,0.72432]
[1740061002793,3.2078,2761.0,2760.7,0.5657]
[1740061002994,0.72432,2760.9,2760.8,0.72431]
[1740061003403,3.93211,2761.0,2760.9,0.72431]
[1740061003702,0.72433,2760.9,2760.8,0.72432]
[1740061006201,0.7243,2761.0,2760.9,0.72428]
[1740061006393,0.5566,2761.3,2761.2,0.72423]
[1740061007102,0.72428,2761.1,2761.0,0.72426]
[1740061007595,0.5566,2761.3,2760.9,3.2078]
[1740061007800,0.72428,2761.0,2760.9,3.9321]
[1740061007998,0.72428,2761.1,2761.0,0.72425]
[1740061008300,0.72425,2761.2,2761.1,0.72423]
[1740061008697,0.72422,2761.3,2761.2,0.7242]
[1740061010204,0.72426,2761.2,2761.1,0.72422]
[1740061012303,1.81053,2761.3,2760.9,3.2078]
[1740061012503,0.72428,2761.0,2760.9,3.93209]
[1740061014402,3.2078,2761.3,2760.7,0.5657]
[1740061014610,6.82884,2761.3,2760.2,1.81121]
[1740061014903,0.72449,2760.2,2760.1,3.2078]
[1740061015596,1.6655,2760.6,2760.1,3.2078]
[1740061015799,3.2078,2761.0,2760.1,3.2078]
[1740061015997,0.72436,2760.7,2760.2,2.91619]
[1740061016301,0.7244,2760.6,2760.5,0.72441]
[1740061016498,1.1113,2760.9,2760.2,0.5373]
[1740061016907,3.2078,2760.7,2760.2,0.5373]
[1740061017103,0.72454,2760.1,2759.8,3.2078]
[1740061017304,0.72454,2760.1,2760.0,0.72455]
[1740061018008,0.72994193,2760.2,2760.1,0.72452]
[1740061018208,0.00543193,2760.2,2760.1,0.72452]
[1740061018606,0.00543193,2760.2,2760.1,3.93232]
[1740061019207,0.00543193,2760.2,2760.1,3.2078]
[1740061019403,0.00543193,2760.2,2759.7,3.0533]
[1740061019404,0.72454,2760.1,2759.9,0.72457]
[1740061019706,0.72455,2760.0,2759.9,0.72457]
[1740061020006,0.00543193,2760.2,2759.8,3.2078]
[1740061020203,0.00543193,2760.2,2759.7,0.5373]
[1740061020510,1.81131,2760.1,2759.3,3.2078]
[1740061020709,0.5614,2760.0,2759.6,3.2078]
[1740061020907,0.72462,2759.7,2759.6,3.93244]
[1740061021306,0.5614,2760.0,2759.3,0.5729]
[1740061021610,0.7247,2759.4,2759.3,42.09762]
[1740061021808,0.7247,2759.4,2759.3,42.09763]
[1740061022004,0.7247,2759.4,2759.3,1.29763]
[1740061022507,0.7247,2759.4,2759.3,0.5729]
[1740061022809,0.5684,2759.7,2758.7,4.3074]
[1740061023004,2.39854,2759.6,2759.0,0.72479]
[1740061023205,0.72475,2759.3,2758.8,3.7751]
[1740061023405,0.5893,2759.5,2759.4,0.7247]
[1740061023609,0.72474,2759.3,2759.1,3.93257]
[1740061023805,0.72476,2759.2,2759.1,3.2078]
[1740061024012,0.5893,2759.5,2758.8,0.5673]
[1740061024013,3.7971,2759.5,2758.8,3.7751]
[1740061024211,3.7971,2759.5,2759.0,0.72479]
[1740061024212,0.72477,2759.2,2759.0,0.72479]
[1740061024412,3.7971,2759.5,2758.8,3.7751]
[1740061024707,2.519,2759.4,2758.8,3.2078]
[1740061025007,0.72483,2758.9,2758.8,3.2078]
[1740061025213,0.7249,2758.7,2758.5,0.72493]
[1740061025412,3.2078,2759.2,2758.4,3.2078]
[1740061025807,0.72486,2758.9,2758.7,0.72489]
[1740061026310,0.5771,2759.1,2758.4,3.2078]
[1740061026311,0.5849,2759.0,2758.4,3.2078]
[1740061026508,1.30972,2759.0,2758.8,0.72484]
[1740061027113,0.5849,2759.0,2758.4,3.2078]
[1740061027310,0.5849,2759.0,2758.9,0.72483]
[1740061027611,1.30971,2759.0,2758.9,0.72483]
[1740061027814,1.30971,2759.0,2758.8,0.72484]
[1740061028016,0.5849,2759.0,2758.9,0.72483]
[1740061028211,0.5849,2759.4,2759.3,0.72473]
[1740061028409,3.2078,2759.9,2759.1,5.7258]
[1740061028606,3.2078,2759.9,2759.7,0.72462]
[1740061028809,0.72462,2759.8,2759.6,0.72464]
[1740061029010,0.72464,2759.7,2759.5,0.72466]
[1740061029508,1.1421,2760.1,2759.5,0.72466]
[1740061029708,3.2078,2759.9,2759.2,1.1365]
[1740061029914,3.2078,2759.6,2758.9,3.0543]
[1740061030109,2.517,2759.9,2759.4,0.7247]
[1740061030110,0.5447,2759.5,2759.4,0.7247]
[1740061030319,5.7248,2759.9,2759.3,3.2078]
[1740061030719,0.72465,2759.6,2759.5,0.72467]
[1740061031020,0.72461,2759.8,2759.7,0.72461]
[1740061031512,3.2078,2759.9,2759.3,5.7248]
[1740061031717,0.72461,2759.8,2759.7,0.72462]
[1740061031915,3.2078,2759.9,2759.3,5.7248]
[1740061032109,0.72464,2759.7,2759.6,0.72464]
[1740061032511,3.2078,2759.9,2759.3,5.7248]
[1740061032818,0.72461,2759.8,2759.7,0.72461]
[1740061033019,3.2078,2759.9,2759.3,5.7248]
[1740061033221,0.72466,2759.6,2759.5,0.72466]
[1740061033415,0.72463,2759.7,2759.6,0.72464]
[1740061033614,0.72461,2759.8,2759.3,5.7248]
[1740061034016,3.93239,2759.9,2759.8,0.7246]
[1740061034321,3.2078,2759.9,2759.3,3.2078]
[1740061034522,0.72469,2759.5,2759.4,0.72469]
[1740061035810,3.2078,2759.9,2759.3,3.2078]
[1740061036015,5.7188,2759.9,2758.9,0.5373]
[1740061036215,5.7188,2759.9,2758.9,3.0483]
[1740061036216,3.2078,2759.4,2758.9,3.0483]
[1740061036520,0.7247,2759.5,2759.2,0.72474]
[1740061036823,3.2078,2759.8,2759.1,3.2078]
[1740061037023,6.44941,2759.8,2759.7,0.72462]
[1740061037523,5.7248,2759.8,2759.7,0.72462]
[1740061037723,0.72464,2759.7,2759.6,0.72464]
[1740061038027,0.7247,2759.5,2759.4,0.72469]
[1740061039119,0.72468,2759.5,2759.4,0.72469]
[1740061039822,0.541,2759.7,2759.1,3.2078]
[1740061040026,0.5675,2759.4,2759.3,0.72471]
[1740061042920,1.2922,2759.4,2759.3,0.72471]
[1740061044724,0.5675,2759.4,2759.3,0.72471]
[1740061045028,1.2922,2759.4,2759.3,0.72471]
[1740061047222,1.2922,2759.4,2759.0,1.81202]
[1740061047223,0.5675,2759.4,2759.0,1.81202]
[1740061047429,0.72478,2759.2,2759.1,0.72475]
[1740061048433,0.72481,2759.1,2759.0,0.72478]
[1740061049437,0.72483,2759.0,2758.9,0.7248]
[1740061051136,1.81184,2759.3,2758.7,3.2078]
[1740061051335,0.72486,2758.9,2758.8,0.72484]
[1740061051532,1.81184,2759.3,2758.7,3.2078]
[1740061051730,0.72484,2759.0,2758.9,0.72481]
[1740061052234,0.72486,2758.9,2758.8,0.72484]
[1740061053244,2.498,2759.0,2758.4,3.2078]
[1740061053430,2.498,2759.0,2758.3,3.2078]
[1740061053431,0.72495,2758.5,2758.3,3.2078]
[1740061053631,4.2949,2758.8,2758.3,3.2078]
[1740061053827,4.2949,2758.8,2758.0,1.81265]
[1740061053828,0.72499,2758.4,2758.2,0.725]
[1740061054039,0.72499,2758.4,2758.0,3.2078]
[1740061054331,1.81766193,2758.7,2758.0,3.2078]
[1740061054538,0.00543193,2758.7,2758.0,3.2078]
[1740061054738,0.725,2758.4,2758.3,0.72498]
[1740061055234,0.7233557,2758.4,2758.3,0.72498]
[1740061055740,0.72501,2758.3,2758.2,0.725]
[1740061055940,0.72498,2758.4,2758.3,0.72497]
[1740061056442,0.72498,2758.4,2758.3,0.72498]
[1740061057340,0.72501,2758.3,2758.2,0.725]
[1740061057738,0.72498,2758.4,2758.3,0.72497]
[1740061058335,1.81258,2758.2,2757.7,3.2078]
[1740061058542,0.72506,2758.1,2757.8,3.2078]
[1740061058743,0.72506,2758.1,2758.0,0.72507]
[1740061059544,0.5516,2758.3,2757.9,0.5838]
[1740061059752,0.72507,2758.0,2757.9,1.30888]
[1740061060037,0.72518,2757.6,2757.5,1.2734]
[1740061060237,3.2078,2758.0,2757.6,1.81295]
[1740061060435,0.5352,2758.2,2757.9,3.2078]
[1740061060640,3.22601,2758.3,2758.2,0.72499]
[1740061061535,0.72501,2758.3,2758.2,0.72499]
[1740061061936,0.72502,2758.2,2758.1,0.587]
[1740061062444,0.72502,2758.2,2757.7,0.72512]
[1740061062445,0.72514,2757.8,2757.7,0.72512]
[1740061064344,5.7058,2758.2,2757.6,0.587]
[1740061064543,6.43084,2758.2,2758.1,0.72504]
[1740061064744,3.93284,2758.2,2758.1,0.72504]
[1740061065042,0.00543193,2758.7,2758.2,1.81255]
[1740061065237,0.00543193,2758.7,2758.3,0.5573]
[1740061065438,0.00543193,2758.7,2758.4,3.2078]
[1740061065745,0.73033193,2758.7,2758.6,0.72491]
[1740061065946,0.73032193,2758.7,2758.6,0.72491]
[1740061066147,0.00543193,2758.7,2758.6,0.72491]
[1740061067044,0.73032193,2758.7,2758.6,0.72491]
[1740061067236,0.72494,2758.5,2758.4,3.2078]
[1740061067431,0.72497,2758.4,2758.3,1.28228]
[1740061068345,0.5636,2758.6,2758.5,0.72494]
[1740061068346,1.28852,2758.6,2758.5,0.72494]
[1740061068751,0.00543193,2758.7,2758.6,0.72491]
[1740061069242,0.73032193,2758.7,2758.6,0.72491]
[1740061069451,0.00543193,2758.7,2758.6,0.72491]
[1740061070649,0.73032193,2758.7,2758.6,0.72491]
[1740061070846,0.72494,2758.6,2758.5,0.72492]
[1740061071243,0.00543193,2758.7,2758.4,3.2078]
[1740061071543,0.73032193,2758.7,2758.6,0.72491]
[1740061072845,0.73032193,2758.7,2758.4,3.2078]
[1740061072846,0.00543193,2758.7,2758.4,3.2078]
[1740061073151,0.72494,2758.6,2758.5,0.72492]
[1740061073447,0.73032193,2758.7,2758.6,0.72491]
[1740061073838,0.00543193,2758.7,2758.6,0.72491]
[1740061074047,0.73032193,2758.7,2758.6,0.72491]
[1740061074249,0.00543193,2758.7,2758.6,0.72491]
[1740061074649,3.49312551,2759.7,2759.6,0.72465]
[1740061074849,3.2078,2760.0,2759.7,0.72462]
[1740061075143,3.2078,2760.0,2759.9,0.72457]
[1740061075447,0.29574201,2760.7,2759.4,5.01956]
[1740061075448,0.72445,2760.4,2760.2,0.72449]
[1740061075649,0.5452,2760.6,2760.0,3.2078]
[1740061075844,6.44416,2760.7,2760.0,3.2078]
[1740061076146,0.72983193,2760.6,2760.4,0.72444]
[1740061076444,0.00543193,2760.6,2760.1,0.5499]
[1740061076645,0.5452,2760.5,2760.0,0.00543193]
[1740061076842,0.72452,2760.1,2760.0,0.00543193]
[1740061077443,3.93232,2760.1,2760.0,0.00543193]
[1740061077848,0.72452,2760.1,2760.0,0.00543193]
[1740061078352,0.72446,2760.4,2760.1,0.72451]
[1740061078653,0.72446,2760.4,2760.1,0.72452]
[1740061078850,6.262,2760.5,2760.1,0.72452]
[1740061079052,6.262,2760.5,2760.1,1.30382]
[1740061079253,3.0542,2760.5,2760.1,0.5793]
[1740061079456,6.262,2760.5,2760.1,0.5793]
[1740061079657,0.72446,2760.4,2760.1,1.30381]
[1740061079861,3.0542,2760.5,2760.1,1.30381]
[1740061080148,3.0542,2760.5,2760.1,0.5793]
[1740061080352,6.262,2760.5,2760.1,0.5793]
[1740061081247,6.98643,2760.5,2760.1,1.1662]
[1740061081449,6.98643,2760.5,2760.2,0.72447]
[1740061081644,4.47743,2760.5,2760.1,1.1662]
[1740061081945,0.72444,2760.4,2760.1,1.1662]
[1740061082453,3.753,2760.5,2760.4,0.72444]
[1740061082648,3.2078,2760.5,2760.4,0.72444]
[1740061082955,0.00543193,2760.6,2760.5,0.72441]
[1740061084346,0.00543193,2760.6,2760.5,3.93221]
[1740061084555,2.502,2761.4,2761.2,0.72422]
[1740061084758,0.7242,2761.4,2761.2,0.72422]
[1740061085054,3.2078,2761.7,2761.6,0.72413]
[1740061085449,1.28912,2762.0,2761.6,0.72413]
[1740061085656,0.00543193,2761.9,2761.6,3.2078]
[1740061085852,0.00543193,2761.9,2761.4,0.58443193]
[1740061086055,0.72408,2761.8,2761.4,0.58443193]
[1740061086261,0.00543193,2761.9,2761.8,0.72407]
[1740061087147,0.00543193,2761.9,2761.8,3.23207]
[1740061087554,3.93171,2762.5,2762.2,0.72395]
[1740061087848,2.39573,2762.9,2762.0,3.2078]
[1740061087849,0.5862,2762.9,2762.0,3.2078]
[1740061088055,0.72383,2762.8,2762.5,0.72388]
[1740061088254,0.5862,2762.9,2762.1,0.5395]
[1740061088450,0.72383,2762.8,2762.4,0.72391]
[1740061088655,0.72926193,2762.8,2762.4,0.72391]
[1740061088856,0.00543193,2762.8,2762.2,2.516]
[1740061089151,3.2078,2762.7,2762.2,3.23997]
[1740061089358,0.7239,2762.5,2762.2,2.516]
[1740061089549,0.72389,2762.5,2762.3,0.72394]
[1740061089751,3.2078,2762.7,2762.2,2.516]
[1740061090555,0.72386,2762.6,2762.2,2.516]
[1740061090850,0.72926193,2762.8,2762.5,0.72387]
[1740061091050,0.00543193,2762.8,2762.5,0.5403]
[1740061091252,0.72385,2762.7,2762.5,1.26419]
[1740061091457,0.72925193,2762.8,2762.6,0.72386]
[1740061091961,0.72385,2762.7,2762.5,1.26418]
[1740061092160,0.00543193,2762.8,2762.5,0.5403]
[1740061092357,0.00543193,2762.8,2762.5,1.26417]
[1740061092653,0.72385,2762.7,2762.5,1.26417]
[1740061093059,0.72386,2762.6,2762.5,0.5403]
[1740061093450,0.72385,2762.7,2762.5,1.26419]
[1740061093656,0.00543193,2762.8,2762.5,0.5403]
[1740061093860,0.72926193,2762.8,2762.5,0.5403]
[1740061094253,0.00543193,2762.8,2762.5,0.5403]
[1740061094459,0.72926193,2762.8,2762.6,0.72385]
[1740061095264,0.00543193,2762.8,2762.7,0.72384]
[1740061095465,0.72924193,2762.8,2762.7,0.72384]
[1740061095960,0.72926193,2762.8,2762.6,0.72384]
[1740061096153,0.72386,2762.6,2762.5,0.5403]
[1740061096561,0.00543193,2762.8,2762.5,0.5403]
[1740061096958,0.72386,2762.6,2762.5,0.5403]
[1740061097158,0.72386,2762.6,2762.5,1.26419]
[1740061097363,0.72385,2762.7,2762.6,0.72385]
[1740061097761,0.72386,2762.6,2762.5,1.26417]
[1740061097966,0.00543193,2762.8,2762.5,0.5403]
[1740061098167,0.72924193,2762.8,2762.7,0.72384]
[1740061098557,0.00543193,2762.8,2762.7,0.72384]
[1740061098868,0.543,2763.6,2763.0,1.80937]
[1740061099059,0.72364,2763.5,2763.4,0.72363]
[1740061100169,0.72901193,2763.7,2763.6,0.7236]
[1740061100467,0.00543193,2763.7,2763.4,5.7238]
[1740061100673,0.00543193,2763.7,2763.6,0.7236]
[1740061101164,0.00543193,2763.7,2763.4,5.7238]
[1740061101363,0.72363,2763.5,2763.4,3.2078]
[1740061101566,0.00543193,2763.7,2763.4,2.517]
[1740061101761,0.72363,2763.5,2763.4,2.517]
[1740061102069,0.00543193,2763.7,2763.2,0.00543193]
[1740061102262,0.00543193,2763.7,2763.3,0.72366]
[1740061102263,0.72364,2763.5,2763.3,0.72366]
[1740061102463,0.00543193,2763.7,2763.2,3.24812193]
[1740061102664,0.72367,2763.4,2763.2,3.24813193]
[1740061102866,0.00543193,2763.7,2763.2,3.24813193]
[1740061103064,0.72368,2763.4,2763.2,3.24813193]
[1740061103366,0.72368,2763.3,2763.2,3.24813193]
[1740061103568,0.72367,2763.4,2763.2,3.24813193]
[1740061103772,0.72367,2763.4,2763.3,0.72368]
[1740061104075,0.72368,2763.3,2763.2,3.24813193]
[1740061104266,0.72366,2763.4,2763.3,0.72367]
[1740061105170,0.00543193,2763.7,2763.2,2.52443193]
[1740061105370,0.72367,2763.4,2763.3,0.72367]
[1740061105577,0.7236,2763.6,2763.2,2.52443193]
[1740061105878,0.00543193,2763.7,2763.6,0.7236]
[1740061106268,0.00543193,2763.7,2763.6,2.516]
[1740061106572,0.72901193,2763.7,2763.6,2.516]
[1740061107071,0.00543193,2763.7,2763.4,2.516]
[1740061107276,0.72363,2763.5,2763.4,2.516]
[1740061107480,0.72363,2763.5,2763.4,3.23965]
[1740061107781,0.72368,2763.3,2763.2,2.52043193]
[1740061108074,0.72367,2763.4,2763.3,0.72367]
[1740061108268,0.72367,2763.4,2763.2,2.52043193]
[1740061108269,0.72368,2763.3,2763.2,3.24412193]
[1740061108470,0.00543193,2763.7,2763.6,0.7236]
[1740061108979,0.00543193,2763.7,2763.6,1.3098]
[1740061109178,0.00543193,2763.7,2763.6,3.8308]
[1740061109372,3.7423,2764.3,2763.6,44.6308]
[1740061109575,0.72349,2764.1,2764.0,0.72349]
[1740061110278,3.7423,2764.3,2763.9,0.5831]
[1740061110474,0.7235,2764.1,2764.0,0.72348]
[1740061110675,3.74773193,2764.3,2763.9,0.5831]
[1740061110875,0.7235,2764.0,2763.9,1.30661]
[1740061111275,5.55632193,2764.3,2763.8,3.93132]
[1740061111276,0.72352,2763.9,2763.8,3.93132]
[1740061112167,0.72352,2763.9,2763.8,3.2078]
[1740061112370,0.72352,2763.9,2763.8,3.93135]
[1740061112678,0.72352,2763.9,2763.8,3.2078]
[1740061113372,0.72354,2763.9,2763.7,0.72355]
[1740061113677,0.5758,2764.1,2763.7,0.72355]
[1740061113678,0.72355,2763.8,2763.7,0.72355]
[1740061113971,0.72358,2763.7,2763.6,0.5862]
[1740061114165,0.5758,2764.1,2763.6,0.5862]
[1740061114370,0.5758,2764.1,2763.8,0.72353]
[1740061114568,0.5758,2764.1,2763.6,0.5862]
[1740061115181,1.29929,2764.1,2764.0,0.7235]
[1740061115477,3.21323193,2764.3,2763.8,3.2078]
[1740061115778,0.72351,2764.0,2763.9,3.23649]
[1740061116081,3.21323193,2764.3,2763.9,2.513]
[1740061116374,0.7235,2764.1,2764.0,0.72346]
[1740061116975,0.72347,2764.2,2764.1,0.72345]
[1740061117174,3.21323193,2764.3,2763.9,2.513]
[1740061117368,0.7235,2764.1,2764.0,0.72348]
[1740061118180,3.21323193,2764.3,2763.9,2.513]
[1740061118573,0.72345,2764.2,2764.1,0.72344]
[1740061118770,0.00543193,2764.3,2764.1,0.72344]
[1740061118771,0.00543193,2764.3,2764.2,0.72344]
[1740061119182,0.00543193,2764.3,2764.2,1.88204]
[1740061119481,0.00543193,2764.3,2764.2,2.41394]
[1740061120278,0.5583,2765.0,2764.4,1.80845]
[1740061120487,0.5583,2765.0,2764.9,0.72326]
[1740061120682,3.7962,2765.2,2764.4,5.7168]
[1740061120984,0.72323,2765.1,2764.5,0.72337]
[1740061121282,0.0035797,2765.1,2764.5,40.80543193]
[1740061121884,0.72329,2764.8,2764.7,0.72329]
[1740061122083,0.72331,2764.8,2764.6,0.72334]
[1740061122278,0.0035797,2765.1,2764.5,40.80543193]
[1740061122585,0.72334,2764.6,2764.5,0.00543193]
[1740061123182,1.83904,2764.6,2764.5,0.00543193]
[1740061124288,0.5552,2764.8,2764.5,0.00543193]
[1740061124683,0.72334,2764.6,2764.5,0.00543193]
[1740061127282,3.2078,2764.7,2764.5,0.00543193]
[1740061127476,3.2078,2764.7,2764.6,0.72334]
[1740061127887,0.567,2765.0,2764.6,3.2078]
[1740061128087,1.29026,2765.0,2764.9,0.72326]
[1740061128785,0.567,2765.0,2764.9,3.93106]
[1740061129085,0.72303,2765.8,2765.0,1.8081]
[1740061129385,0.72308,2765.6,2765.5,3.2078]
[1740061130287,5.01546,2765.7,2765.1,4.2826]
[1740061130483,0.72311,2765.5,2765.4,0.72312]
[1740061130686,0.72307,2765.7,2765.5,0.72308]
[1740061130888,0.578,2765.8,2765.5,0.72309]
[1740061131093,0.72294,2766.2,2766.0,0.72296]
[1740061131388,2.9552,2766.6,2765.7,3.2078]
[1740061131595,0.72303,2765.8,2765.7,3.2078]
[1740061131796,0.5494,2766.2,2765.5,2.515]
[1740061132094,0.5494,2766.2,2765.5,2.52042201]
[1740061132388,0.72308,2765.6,2765.5,2.52042201]
[1740061132589,0.72306,2765.7,2765.5,3.24352201]
[1740061132793,0.5494,2766.2,2765.5,2.52042201]
[1740061132996,0.72295,2766.1,2765.9,0.72298]
[1740061133193,3.2078,2766.4,2765.9,0.5436]
[1740061133395,3.2078,2766.4,2765.5,6.45131201]
[1740061133688,0.72304,2765.8,2765.5,5.72822201]
[1740061133894,0.72304,2765.8,2765.6,0.72307]
[1740061134093,0.5707,2766.2,2765.5,5.72822201]
[1740061134289,0.72306,2765.7,2765.5,6.45130201]
[1740061134490,3.2078,2766.1,2765.5,5.72822201]
[1740061134797,0.72304,2765.8,2765.6,0.72307]
[1740061135195,3.7785,2766.2,2765.5,5.72822201]
[1740061135196,5.58582,2766.2,2765.5,5.72822201]
[1740061135401,1.80738,2766.1,2765.5,5.72822201]
[1740061135600,1.80738,2766.1,2765.6,0.72308]
[1740061135900,1.80738,2766.1,2765.5,5.72822201]
[1740061135901,0.72308,2765.6,2765.5,3.21322201]
[1740061136601,0.72308,2765.6,2765.5,3.93632201]
[1740061136999,0.72308,2765.6,2765.5,3.21322201]
[1740061137503,0.72308,2765.6,2765.5,0.00542201]
[1740061137700,9.25208,2765.6,2765.5,0.00542201]
[1740061137902,0.72326,2764.9,2764.8,3.25227]
[1740061138102,0.72326,2764.9,2764.8,0.72327]
[1740061138409,1.80788,2765.4,2764.6,3.93112]
[1740061138410,0.72331,2764.7,2764.6,3.93112]
[1740061138697,0.72329,2764.8,2764.7,0.7233]
[1740061138903,0.72328,2764.9,2764.8,0.72328]
[1740061139093,0.72331,2764.8,2764.5,2.53442201]
[1740061139299,1.80797,2765.2,2764.5,2.53442201]
[1740061139494,0.72334,2764.6,2764.5,3.25778201]
[1740061139904,0.72334,2764.6,2764.5,0.00542201]
[1740061141205,0.5846,2764.9,2764.5,0.00542201]
[1740061141505,0.72334,2764.6,2764.5,0.72878201]
[1740061141711,0.5846,2764.9,2764.5,0.00542201]
[1740061141905,0.72332,2764.7,2764.6,0.72333]
[1740061142100,0.72332,2764.7,2764.6,0.72332]
[1740061142306,2.528,2765.2,2764.5,0.00542201]
[1740061142506,0.72331,2764.8,2764.7,0.7233]
[1740061142701,2.528,2765.2,2764.5,0.00542201]
[1740061142908,0.72328,2764.9,2764.8,0.72329]
[1740061143200,0.72326,2764.9,2764.8,0.72329]
[1740061143604,0.72329,2764.8,2764.7,3.9311]
[1740061144004,0.72329,2764.8,2764.7,3.2078]
[1740061144917,0.72329,2764.8,2764.7,3.93111]
[1740061145111,0.72329,2764.8,2764.7,3.2078]
[1740061145513,0.72329,2764.8,2764.7,3.93111]
[1740061145704,4.33599,2765.2,2764.7,3.2078]
[1740061145909,0.72322,2765.1,2765.0,0.72321]
[1740061146108,0.72326,2764.9,2764.8,1.30417]
[1740061146310,0.72326,2764.9,2764.8,1.30416]
[1740061147015,0.72326,2764.9,2764.8,1.30418]
[1740061147212,0.72326,2764.9,2764.8,0.5809]
[1740061147809,0.72325,2765.0,2764.8,0.5809]
[1740061148012,0.72326,2764.9,2764.8,1.30418]
[1740061148212,0.72329,2764.8,2764.7,3.93109]
[1740061148912,0.72327,2764.9,2764.8,0.72325]
[1740061151220,0.72329,2764.8,2764.7,3.9311]
[1740061151913,0.72328,2764.9,2764.8,0.72326]
[1740061152117,0.72328,2764.9,2764.8,0.72325]
[1740061152512,0.72329,2764.8,2764.7,3.93111]
[1740061153314,0.72329,2764.8,2764.7,3.2078]
[1740061153919,0.72334,2764.6,2764.5,0.00542201]
[1740061154419,0.72334,2764.6,2764.1,44.0078]
[1740061154420,1.80862,2764.3,2763.6,3.2078]
[1740061154613,1.1278,2764.7,2763.9,0.7235]
[1740061154614,0.72351,2764.0,2763.9,0.7235]
[1740061155911,0.00542201,2764.2,2763.7,40.80542201]
[1740061156121,0.00542201,2764.2,2764.0,0.72348]
[1740061156122,0.7235,2764.1,2764.0,0.72348]
[1740061156522,0.00542201,2764.2,2763.9,3.2078]
[1740061156823,0.00542201,2764.2,2763.7,40.80542201]
[1740061157017,0.72355,2763.8,2763.7,0.72900201]
[1740061157218,0.72355,2763.8,2763.7,0.00542201]
[1740061157624,0.554,2764.0,2763.7,0.00542201]
[1740061157827,0.00542201,2764.2,2764.0,0.72347]